bitfinex-derivatives/quotes_BNBF0:USTF0_20250523
["timestamp","ask_amount","ask_price","bid_price","bid_amount"]
[1748034622024,1.08509902,661.27,660.44,1.4637048]
[1748034622329,1.11697207,661.29,660.44,1.4637048]
[1748034622535,1.08493512,661.28,660.44,1.4637048]
[1748034622731,1.08493512,661.27,660.38,1.4637048]
[1748034623026,1.11697207,661.32,660.38,1.4637048]
[1748034623228,1.08490162,661.31,660.38,1.4637048]
[1748034623427,1.11697207,661.32,660.38,1.4637048]
[1748034623428,1.08490162,661.3,660.38,1.4637048]
[1748034623629,1.08490162,661.29,660.38,1.4637048]
[1748034623829,1.08490162,661.28,660.38,1.4637048]
[1748034624030,1.11697207,661.32,660.38,1.4637048]
[1748034624229,1.08476371,661.31,660.38,1.4637048]
[1748034624426,1.08476371,661.3,660.38,1.4637048]
[1748034624630,1.08463871,661.29,660.38,1.4637048]
[1748034624827,1.08463871,661.28,660.38,1.4637048]
[1748034625029,1.11697207,661.32,660.38,1.4637048]
[1748034625240,1.08463694,661.31,660.38,1.4637048]
[1748034625442,1.08463694,661.3,660.38,1.4637048]
[1748034625731,1.08463694,661.29,660.38,1.4637048]
[1748034625931,1.08463694,661.28,660.37,1.4637048]
[1748034626131,1.11697207,661.33,660.37,1.4637048]
[1748034626427,1.08447604,661.32,660.37,1.4637048]
[1748034626628,1.08447604,661.31,660.37,1.4637048]
[1748034626836,1.08447604,661.3,660.37,1.4637048]
[1748034627132,1.08447604,661.29,660.37,1.4637048]
[1748034627331,1.11697207,661.33,660.37,1.4637048]
[1748034627535,1.08374879,661.32,660.37,1.4637048]
[1748034627828,1.08374879,661.31,660.37,1.4637048]
[1748034628129,1.08374879,661.3,660.37,1.4637048]
[1748034628326,1.08374879,661.29,660.37,1.4637048]
[1748034628528,1.11697207,661.33,660.37,1.4637048]
[1748034628730,1.08366169,661.32,660.37,1.4637048]
[1748034628929,1.08366169,661.31,660.37,1.4637048]
[1748034629131,1.08366169,661.3,660.37,1.4637048]
[1748034629331,1.08366169,661.29,660.37,1.4637048]
[1748034629533,1.11697207,661.32,660.38,1.4637048]
[1748034629735,1.08363012,661.31,660.38,1.4637048]
[1748034629935,1.08363012,661.3,660.38,1.4637048]
[1748034630134,1.08363012,661.29,660.38,1.4637048]
[1748034630331,1.11697207,661.32,660.38,1.4637048]
[1748034630545,1.08365104,661.31,660.38,1.4637048]
[1748034630733,1.08364627,661.3,660.38,1.4637048]
[1748034631037,1.11697207,661.32,660.38,1.4637048]
[1748034631336,1.08380382,661.31,660.38,1.4637048]
[1748034631634,1.08380382,661.3,660.38,1.4637048]
[1748034631834,1.11697207,661.32,660.38,1.4637048]
[1748034632134,1.08379056,661.31,660.38,1.4637048]
[1748034632334,1.08379056,661.3,660.38,1.4637048]
[1748034632530,1.11697207,661.32,660.38,1.4637048]
[1748034632835,1.08379728,661.31,660.39,1.4637048]
[1748034633034,1.08379728,661.3,660.39,1.4637048]
[1748034633241,1.08385317,661.29,660.39,1.4637048]
[1748034633427,1.11697207,661.33,660.39,1.4637048]
[1748034633632,1.08388523,661.32,660.39,1.4637048]
[1748034633832,1.08388523,661.31,660.39,1.4637048]
[1748034634029,1.08388523,661.3,660.39,1.4637048]
[1748034634231,1.08388523,661.29,660.39,1.4637048]
[1748034634436,1.11697207,661.33,660.39,1.4637048]
[1748034634635,1.08392493,661.32,660.39,1.4637048]
[1748034634937,1.08392493,661.31,660.39,1.4637048]
[1748034635142,1.08392493,661.3,660.39,1.4637048]
[1748034635336,1.08392493,661.29,660.39,1.4637048]
[1748034635535,1.11697207,661.33,660.39,1.4637048]
[1748034635731,1.08391485,661.32,660.39,1.4637048]
[1748034635935,1.08391485,661.31,660.39,1.4637048]
[1748034636135,1.08391485,661.3,660.39,1.4637048]
[1748034636431,1.08391485,661.29,660.34,1.4637048]
[1748034636630,1.11697207,661.35,660.34,1.4637048]
[1748034636835,1.56050153,661.34,660.34,1.4637048]
[1748034637036,1.0839144,661.33,660.34,1.4637048]
[1748034637236,1.0839144,661.32,660.34,1.4637048]
[1748034637437,1.0839144,661.31,660.34,1.4637048]
[1748034637634,1.0839144,661.3,660.34,1.4637048]
[1748034637838,1.0839144,661.29,660.34,1.4637048]
[1748034638038,1.0839144,661.28,660.34,1.4637048]
[1748034638337,1.0839144,661.27,660.34,1.4637048]
[1748034638638,1.0839144,661.26,660.34,1.4637048]
[1748034638838,1.0839144,661.25,660.34,1.4637048]
[1748034639037,1.11697207,661.35,660.34,1.4637048]
[1748034639239,1.86291305,661.34,660.34,1.4637048]
[1748034639443,2.67746882,661.33,660.27,1.4637048]
[1748034639739,1.56049201,661.32,660.27,1.4637048]
[1748034639935,1.11697207,661.33,660.27,1.4637048]
[1748034639936,1.56049201,661.31,660.27,1.4637048]
[1748034640139,1.08390747,661.3,660.27,1.4637048]
[1748034640342,1.08390747,661.29,660.27,1.4637048]
[1748034640547,1.08390747,661.28,660.27,1.4637048]
[1748034640741,1.08390747,661.27,660.27,1.4637048]
[1748034640934,1.08390747,661.26,660.27,1.4637048]
[1748034641141,1.08390747,661.25,660.27,1.4637048]
[1748034641337,1.11697207,661.33,660.27,1.4637048]
[1748034641537,1.56050894,661.32,660.27,1.4637048]
[1748034641840,1.56050894,661.31,660.27,1.4637048]
[1748034642038,1.08391602,661.3,660.27,1.4637048]
[1748034642236,1.08391602,661.29,660.27,1.4637048]
[1748034642451,1.08391602,661.28,660.27,1.4637048]
[1748034642643,1.08391602,661.27,660.27,1.4637048]
[1748034642842,1.08391602,661.26,660.27,1.4637048]
[1748034643043,1.08391602,661.25,660.27,1.4637048]
[1748034643245,1.11697207,661.33,660.27,1.4637048]
[1748034643461,1.11697207,661.33,659.63,3.6593454]
[1748034643462,1.56057476,661.32,660.23,1.4637048]
[1748034643746,1.56057476,661.31,660.23,1.4637048]
[1748034643945,1.08396161,661.3,660.23,1.4637048]
[1748034644148,1.08396161,661.29,660.23,1.4637048]
[1748034644346,0.3024163,661.34,660.23,1.4637048]
[1748034644347,1.08396161,661.28,660.23,1.4637048]
[1748034644540,1.08396161,661.27,660.23,1.4637048]
[1748034644744,1.08396161,661.26,660.23,1.4637048]
[1748034644945,1.08396161,661.25,660.23,1.4637048]
[1748034645142,0.3024163,661.34,660.23,1.4637048]
[1748034645342,1.56059466,661.33,660.23,1.4637048]
[1748034645589,1.86302011,661.32,660.23,1.4637048]
[1748034645844,1.86302468,661.31,660.23,1.4637048]
[1748034646046,1.86302925,661.3,660.23,1.4637048]
[1748034646247,1.86303383,661.29,660.23,1.4637048]
[1748034646446,1.8630384,661.28,660.23,1.4637048]
[1748034646652,1.86304297,661.27,660.23,1.4637048]
[1748034646849,0.97799749,664.73,660.11,1.4637048]
[1748034646850,1.11697207,661.22,660.11,1.4637048]
[1748034647144,1.86232619,661.21,660.11,1.4637048]
[1748034647347,1.86233076,661.2,660.11,1.4637048]
[1748034647648,1.86233534,661.19,660.11,1.4637048]
[1748034647845,1.86233991,661.18,660.11,1.4637048]
[1748034648051,1.86195494,661.17,660.11,1.4637048]
[1748034648249,1.08323148,661.16,660.11,1.4637048]
[1748034648451,1.08323148,661.15,660.11,1.4637048]
[1748034648748,1.08323148,661.14,660.11,1.4637048]
[1748034648952,1.08323148,661.13,660.11,1.4637048]
[1748034649254,1.08323148,661.12,660.11,1.4637048]
[1748034649447,1.08323148,661.11,660.11,1.4637048]
[1748034649647,1.08323148,661.1,660.11,1.4637048]
[1748034649958,0.30249406,661.17,660.11,1.4637048]
[1748034650252,1.55881335,661.16,660.11,1.4637048]
[1748034650458,1.55881335,661.15,660.11,1.4637048]
[1748034650787,1.11697207,661.13,660.15,1.4637048]
[1748034650949,1.08257114,661.12,660.15,1.4637048]
[1748034651151,1.08257114,661.11,660.15,1.4637048]
[1748034651353,1.08257114,661.1,660.15,1.4637048]
[1748034651552,1.11697207,661.13,660.15,1.4637048]
[1748034651747,1.08249267,661.12,660.15,1.4637048]
[1748034651950,1.08249267,661.11,660.15,1.4637048]
[1748034652155,1.08249267,661.1,660.15,1.4637048]
[1748034652471,1.11697207,661.13,660.15,1.4637048]
[1748034652652,1.08237454,661.12,660.15,1.4637048]
[1748034652851,1.08237454,661.11,660.15,1.4637048]
[1748034653048,1.08237454,661.1,660.15,1.4637048]
[1748034653353,1.11697207,661.13,660.15,1.4637048]
[1748034653558,1.08230738,661.12,660.14,1.4637048]
[1748034653752,1.08230738,661.11,660.14,1.4637048]
[1748034653951,1.08230738,661.1,660.14,1.4637048]
[1748034654252,1.11697207,661.14,660.14,1.4637048]
[1748034654448,1.08236918,661.13,660.14,1.4637048]
[1748034654654,1.08236918,661.12,660.14,1.4637048]
[1748034654855,1.08236918,661.11,660.14,1.4637048]
[1748034655050,1.08236918,661.1,660.14,1.4637048]
[1748034655255,1.11697207,661.14,660.14,1.4637048]
[1748034655554,1.08225184,661.13,660.14,1.4637048]
[1748034655753,1.08225184,661.12,660.14,1.4637048]
[1748034655971,1.08225311,661.11,660.14,1.4637048]
[1748034656156,1.08225311,661.1,660.14,1.4637048]
[1748034656355,1.11697207,661.14,660.14,1.4637048]
[1748034656557,1.08226376,661.13,660.09,1.4637048]
[1748034656757,1.08226376,661.12,660.09,1.4637048]
[1748034656957,1.08226376,661.11,660.09,1.4637048]
[1748034657172,1.41946613,661.17,660.09,1.4637048]
[1748034657358,1.55834087,661.16,660.09,1.4637048]
[1748034657552,1.08237448,661.15,660.09,1.4637048]
[1748034657754,1.08237448,661.14,660.09,1.4637048]
[1748034657960,1.08237448,661.13,660.09,1.4637048]
[1748034658160,1.08237448,661.12,660.09,1.4637048]
[1748034658355,1.08237448,661.11,660.09,1.4637048]
[1748034658556,1.082346,661.1,660.09,1.4637048]
[1748034658779,1.41946613,661.17,660.09,1.4637048]
[1748034658963,1.5583031,661.16,660.09,1.4637048]
[1748034659160,1.5582931,661.15,660.04,1.4637048]
[1748034659362,1.5582931,661.14,660.04,1.4637048]
[1748034659565,1.55827875,661.13,660.04,1.4637048]
[1748034659759,1.55827875,661.12,660.04,1.4637048]
[1748034659962,1.558266,661.11,660.04,1.4637048]
[1748034660172,1.08232839,661.1,660.04,1.4637048]
[1748034660391,0.30249406,661.17,660.04,1.4637048]
[1748034660392,1.08232839,661.09,660.04,1.4637048]
[1748034660565,1.08232839,661.08,660.04,1.4637048]
[1748034660865,1.08232839,661.07,660.04,1.4637048]
[1748034661066,1.08232839,661.06,660.04,1.4637048]
[1748034661266,0.30249406,661.17,660.04,1.4637048]
[1748034661471,1.55820588,661.16,660.04,1.4637048]
[1748034661766,1.86070909,661.15,660.04,1.4637048]
[1748034661966,1.86071366,661.14,660.04,1.4637048]
[1748034662167,1.86071824,661.13,660.04,1.4637048]
[1748034662376,1.86072282,661.12,660.04,1.4637048]
[1748034662561,1.86072739,661.11,660.04,1.4637048]
[1748034662760,1.86073197,661.1,659.98,1.4637048]
[1748034662961,1.86073654,661.09,659.98,1.4637048]
[1748034663167,1.08226647,661.08,659.98,1.4637048]
[1748034666168,1.08273092,661.07,659.98,1.4637048]
[1748034666369,1.08273092,661.06,659.98,1.4637048]
[1748034666570,1.08273092,661.05,659.98,1.4637048]
[1748034666768,1.08273092,661.04,659.98,1.4637048]
[1748034666967,0.30253066,661.09,659.98,1.4637048]
[1748034667164,1.08273526,661.08,659.98,1.4637048]
[1748034667369,1.08273526,661.07,659.98,1.4637048]
[1748034667570,1.08273526,661.06,659.98,1.4637048]
[1748034667767,1.08273526,661.05,659.98,1.4637048]
[1748034667969,1.08273526,661.04,659.98,1.4637048]
[1748034668178,0.30253524,661.08,659.98,1.4637048]
[1748034668372,1.08166667,661.07,660.0,1.4637048]
[1748034668574,1.08166667,661.06,660.0,1.4637048]
[1748034668772,1.08166667,661.05,660.0,1.4637048]
[1748034668972,1.08166667,661.04,660.0,1.4637048]
[1748034669273,0.30253524,661.08,660.0,1.4637048]
[1748034669473,1.08182969,661.07,660.0,1.4637048]
[1748034669812,1.08183264,661.06,660.0,1.4637048]
[1748034669973,1.08183264,661.05,660.0,1.4637048]
[1748034670183,1.08183264,661.04,660.0,1.4637048]
[1748034670382,0.30253524,661.08,660.0,1.4637048]
[1748034670568,1.08189601,661.07,660.0,1.4637048]
[1748034670768,1.08189601,661.06,660.0,1.4637048]
[1748034670972,1.08189601,661.05,660.0,1.4637048]
[1748034671173,1.08189601,661.04,660.0,1.4637048]
[1748034671469,1.08189601,661.03,660.0,1.4637048]
[1748034671674,0.30253524,661.08,660.0,1.4637048]
[1748034671974,1.08202203,661.07,660.0,1.4637048]
[1748034672171,1.08202203,661.06,660.07,1.4637048]
[1748034672374,1.08202203,661.05,660.07,1.4637048]
[1748034672571,1.08202203,661.04,660.07,1.4637048]
[1748034672774,1.08202203,661.03,660.07,1.4637048]
[1748034672998,0.30253524,661.08,660.07,1.4637048]
[1748034673174,1.08198799,661.07,660.07,1.4637048]
[1748034673374,1.08199618,661.06,660.07,1.4637048]
[1748034673574,1.08199618,661.05,660.07,1.4637048]
[1748034673776,1.08199618,661.04,660.07,1.4637048]
[1748034674072,1.08199618,661.03,660.07,1.4637048]
[1748034674276,0.30253524,661.08,660.07,1.4637048]
[1748034674473,1.08192058,661.07,660.07,1.4637048]
[1748034674678,1.08192058,661.06,660.08,1.4637048]
[1748034674877,1.08192058,661.05,660.08,1.4637048]
[1748034675179,1.0819203,661.04,660.08,1.4637048]
[1748034675478,1.0819203,661.03,660.08,1.4637048]
[1748034675688,1.41950731,661.08,660.08,1.4637048]
[1748034675978,1.0818793,661.07,660.08,1.4637048]
[1748034676175,1.0818793,661.06,660.08,1.4637048]
[1748034676375,1.0818793,661.05,660.08,1.4637048]
[1748034676575,1.0818793,661.04,660.08,1.4637048]
[1748034676775,1.0818793,661.03,660.08,1.4637048]
[1748034676974,1.11697207,661.02,660.18,1.4637048]
[1748034679481,1.08175346,661.01,660.18,1.4637048]
[1748034679686,1.55757233,661.0,660.18,1.4637048]
[1748034679882,1.55757233,660.99,660.18,1.4637048]
[1748034680180,1.08175346,660.98,659.91,1.4637048]
[1748034680375,1.08175346,660.97,659.91,1.4637048]
[1748034680577,1.08175346,660.96,659.91,1.4637048]
[1748034680775,1.08175346,660.95,659.91,1.4637048]
[1748034680978,1.08175346,660.94,659.91,1.4637048]
[1748034681179,1.11697207,661.06,659.91,1.4637048]
[1748034681377,1.85971857,661.05,659.91,1.4637048]
[1748034681579,1.85972315,661.04,659.91,1.4637048]
[1748034681780,1.85972772,661.03,659.91,1.4637048]
[1748034681978,1.11697207,661.06,659.91,1.4637048]
[1748034681979,1.8597323,661.02,659.91,1.4637048]
[1748034682179,1.85973688,661.01,659.91,1.4637048]
[1748034682387,1.85974146,661.0,659.91,1.4637048]
[1748034682585,1.11697207,661.06,659.91,1.4637048]
[1748034682586,1.85974603,660.99,659.91,1.4637048]
[1748034682784,1.08149362,660.98,659.91,1.4637048]
[1748034683784,1.11697207,660.96,660.02,1.4637048]
[1748034683983,1.08149362,660.95,660.02,1.4637048]
[1748034684184,1.08103539,660.94,660.02,1.4637048]
[1748034684481,1.11697207,660.96,660.02,1.4637048]
[1748034684786,1.08100274,660.95,660.02,1.4637048]
[1748034685080,1.11697207,660.96,660.02,1.4637048]
[1748034685281,1.08103852,660.95,660.02,1.4637048]
[1748034685485,1.11697207,660.96,660.02,1.4637048]
[1748034685784,1.08103003,660.95,660.02,1.4637048]
[1748034685985,1.11697207,660.96,660.02,1.4637048]
[1748034686186,1.08102513,660.95,660.02,1.4637048]
[1748034686382,1.11697207,660.96,660.02,1.4637048]
[1748034687689,0.30257643,660.99,659.97,1.4637048]
[1748034688991,1.11697207,661.1,659.98,0.30303948]
[1748034690391,1.11697207,661.44,660.28,1.4637048]
[1748034690589,1.55830796,661.43,660.28,1.4637048]
[1748034690790,1.55830796,661.42,660.28,1.4637048]
[1748034691091,1.08214164,661.41,660.28,1.4637048]
[1748034691387,1.08203043,661.4,660.28,1.4637048]
[1748034691590,1.08203043,661.39,660.28,1.4637048]
[1748034691788,1.11697207,661.44,660.28,1.4637048]
[1748034691989,1.08200208,661.43,660.28,1.4637048]
[1748034692188,1.08200208,661.42,660.28,1.4637048]
[1748034692386,1.08200208,661.41,660.28,1.4637048]
[1748034692587,1.08200208,661.4,660.28,1.4637048]
[1748034692788,1.08200208,661.39,660.28,1.4637048]
[1748034692989,1.11697207,661.44,660.28,1.4637048]
[1748034693191,1.08190074,661.43,660.28,1.4637048]
[1748034693402,1.08190074,661.42,660.3,1.4637048]
[1748034693593,1.08190074,661.41,660.3,1.4637048]
[1748034693785,1.08190074,661.4,660.3,1.4637048]
[1748034693992,1.08190074,661.39,660.3,1.4637048]
[1748034694293,1.86002587,661.38,660.3,1.4637048]
[1748034694494,1.08171479,661.37,660.3,1.4637048]
[1748034694693,1.08171479,661.36,660.3,1.4637048]
[1748034694896,1.08161634,661.35,660.3,1.4637048]
[1748034695092,1.08161634,661.34,660.3,1.4637048]
[1748034695293,1.08161634,661.33,660.3,1.4637048]
[1748034695593,1.08161634,661.32,660.3,1.4637048]
[1748034695792,1.08161634,661.31,660.3,1.4637048]
[1748034696088,1.08161634,661.3,660.3,1.4637048]
[1748034696398,1.08156828,661.29,660.21,1.4637048]
[1748034696595,0.30239801,661.38,660.21,1.4637048]
[1748034696793,1.55753316,661.37,660.21,1.4637048]
[1748034696994,1.55753316,661.36,660.21,1.4637048]
[1748034697294,1.55753316,661.35,660.21,1.4637048]
[1748034697595,1.08159785,661.34,660.21,1.4637048]
[1748034697794,1.08159785,661.33,660.21,1.4637048]
[1748034698095,1.08159785,661.32,660.21,1.4637048]
[1748034698290,1.08159785,661.31,660.21,1.4637048]
[1748034698489,1.08159785,661.3,660.21,1.4637048]
[1748034698788,1.08159785,661.29,660.21,1.4637048]
[1748034698988,0.30239801,661.38,660.21,1.4637048]
[1748034699191,1.55770722,661.37,660.21,1.4637048]
[1748034699394,1.55770722,661.36,660.21,1.4637048]
[1748034699589,1.11697207,661.32,660.35,1.4637048]
[1748034699791,1.08172843,661.31,660.35,1.4637048]
[1748034699989,1.08172843,661.3,660.35,1.4637048]
[1748034700196,1.11697207,661.32,660.35,1.4637048]
[1748034700394,1.08135941,661.31,660.35,1.4637048]
[1748034700594,1.08135941,661.3,660.35,1.4637048]
[1748034700895,1.11697207,661.32,660.35,1.4637048]
[1748034701094,1.0813825,661.31,660.35,1.4637048]
[1748034701294,1.0813825,661.3,660.35,1.4637048]
[1748034701612,1.11697207,661.32,660.35,1.4637048]
[1748034701613,1.55700346,661.29,660.35,1.4637048]
[1748034701793,1.08123585,661.28,660.35,1.4637048]
[1748034701993,1.08123585,661.27,660.35,1.4637048]
[1748034702192,1.08123585,661.26,660.35,1.4637048]
[1748034702405,1.08123585,661.25,660.35,1.4637048]
[1748034702596,1.08123585,661.24,660.35,1.4637048]
[1748034702796,1.08123585,661.23,660.27,1.4637048]
[1748034702996,1.11697207,661.28,660.27,1.4637048]
[1748034703205,1.08098178,661.27,660.27,1.4637048]
[1748034703399,1.08098178,661.26,660.27,1.4637048]
[1748034703599,1.08098178,661.25,660.27,1.4637048]
[1748034703800,1.08098178,661.24,660.27,1.4637048]
[1748034703999,1.11697207,661.28,660.27,1.4637048]
[1748034704196,1.08103354,661.27,660.27,1.4637048]
[1748034704401,1.08103354,661.26,660.27,1.4637048]
[1748034704602,1.08103354,661.25,660.27,1.4637048]
[1748034704802,1.08103354,661.24,660.26,1.4637048]
[1748034704996,1.08103354,661.23,660.26,1.4637048]
[1748034705296,1.08103354,661.22,660.26,1.4637048]
[1748034705495,1.08103354,661.21,660.26,1.4637048]
[1748034705695,1.08103354,661.2,660.26,1.4637048]
[1748034705898,1.08092521,661.19,660.26,1.4637048]
[1748034706198,1.08090447,661.18,660.26,1.4637048]
[1748034706498,1.11697207,661.28,660.26,1.4637048]
[1748034706698,1.85803289,661.27,660.26,1.4637048]
[1748034706901,1.85803747,661.26,660.26,1.4637048]
[1748034707102,2.23394414,661.59,659.98,0.30303948]
[1748034707103,1.11697207,661.24,660.18,1.4637048]
[1748034707404,1.55558917,661.23,660.18,1.4637048]
[1748034707598,1.11697207,661.24,660.18,1.4637048]
[1748034707806,1.55554807,661.23,660.18,1.4637048]
[1748034707995,1.55551885,661.22,660.18,1.4637048]
[1748034708196,1.55551885,661.21,660.18,1.4637048]
[1748034708397,1.55551885,661.2,660.18,1.4637048]
[1748034708599,1.55551885,661.19,660.18,1.4637048]
[1748034708800,1.55551885,661.18,660.18,1.4637048]
[1748034709001,1.55551885,661.17,660.18,1.4637048]
[1748034709204,1.08087967,661.16,660.18,1.4637048]
[1748034709502,1.08061132,661.15,660.18,1.4637048]
[1748034709701,1.08061132,661.14,660.18,1.4637048]
[1748034709910,1.08061132,661.13,660.18,1.4637048]
[1748034710095,1.08061132,661.12,660.18,1.4637048]
[1748034710297,1.08061132,661.11,660.1,1.4637048]
[1748034710501,1.11697207,661.17,660.1,1.4637048]
[1748034710698,1.0806128,661.16,660.1,1.4637048]
[1748034710901,1.0806128,661.15,660.1,1.4637048]
[1748034711101,1.0806128,661.14,660.1,1.4637048]
[1748034711301,1.0807282,661.13,660.1,1.4637048]
[1748034711499,1.0807282,661.12,660.1,1.4637048]
[1748034711697,1.0807282,661.11,660.1,1.4637048]
[1748034711903,1.11697207,661.17,660.1,1.4637048]
[1748034712119,1.08315412,661.16,660.1,1.4637048]
[1748034712303,1.08315412,661.15,660.1,1.4637048]
[1748034712503,1.08315412,661.14,660.1,1.4637048]
[1748034712706,1.08315412,661.13,660.1,1.4637048]
[1748034713005,1.08315412,661.12,660.1,1.4637048]
[1748034713211,1.11697207,661.17,660.1,1.4637048]
[1748034713510,1.08332735,661.16,660.1,1.4637048]
[1748034713712,1.08332735,661.15,660.1,1.4637048]
[1748034713913,1.08332735,661.14,660.12,1.4637048]
[1748034714204,1.08332735,661.13,660.12,1.4637048]
[1748034714402,1.08332735,661.12,660.12,1.4637048]
[1748034714600,1.08332735,661.11,660.12,1.4637048]
[1748034714904,1.11697207,661.17,660.12,1.4637048]
[1748034715103,1.08327584,661.16,660.12,1.4637048]
[1748034715302,1.08327584,661.15,660.12,1.4637048]
[1748034715505,1.08327584,661.14,660.12,1.4637048]
[1748034715706,1.08327584,661.13,660.12,1.4637048]
[1748034716006,1.08327584,661.12,660.12,1.4637048]
[1748034716306,1.08327584,661.11,660.12,1.4637048]
[1748034716506,1.11697207,661.17,660.12,1.4637048]
[1748034716708,1.08328647,661.16,660.12,1.4637048]
[1748034716907,1.08328647,661.15,660.12,1.4637048]
[1748034717206,1.08328647,661.14,660.12,1.4637048]
[1748034717408,1.08328647,661.13,660.12,1.4637048]
[1748034717607,1.08328647,661.12,660.12,1.4637048]
[1748034717803,1.08328647,661.11,660.12,1.4637048]
[1748034718002,1.11697207,661.17,660.12,1.4637048]
[1748034718204,1.08331881,661.16,660.12,1.4637048]
[1748034718402,1.11697207,661.17,660.12,1.4637048]
[1748034718601,1.08331947,661.16,660.12,1.4637048]
[1748034718807,1.08331947,661.15,660.12,1.4637048]
[1748034719006,1.08331947,661.14,660.12,1.4637048]
[1748034719301,1.08331947,661.13,660.12,1.4637048]
[1748034719501,1.08331947,661.12,660.12,1.4637048]
[1748034719706,1.08331947,661.11,660.2,1.4637048]
[1748034719901,1.11697207,661.12,660.2,1.4637048]
[1748034723209,0.30247576,661.21,660.34,1.4637048]
[1748034726011,0.30247576,661.21,660.31,1.4637048]
[1748034729219,1.11697207,661.54,660.31,1.4637048]
[1748034729517,1.08281335,661.53,660.31,1.4637048]
[1748034729713,1.08281335,661.52,660.31,1.4637048]
[1748034730015,1.08281335,661.51,660.31,1.4637048]
[1748034730215,1.11697207,661.54,660.31,1.4637048]
[1748034730415,1.08269485,661.53,660.31,1.4637048]
[1748034730613,1.11697207,661.54,660.31,1.4637048]
[1748034730614,1.08269485,661.52,660.31,1.4637048]
[1748034730813,1.08269485,661.51,660.31,1.4637048]
[1748034731009,1.11697207,661.54,660.31,1.4637048]
[1748034731215,1.0824405,661.53,660.31,1.4637048]
[1748034731416,1.0824405,661.52,660.31,1.4637048]
[1748034731714,1.0824405,661.51,660.31,1.4637048]
[1748034731915,1.11697207,661.55,660.49,1.4637048]
[1748034732115,1.08223223,661.54,660.49,1.4637048]
[1748034732316,1.08223223,661.53,660.49,1.4637048]
[1748034732616,1.08223223,661.52,660.49,1.4637048]
[1748034732812,1.08223223,661.51,660.49,1.4637048]
[1748034733016,1.11697207,661.55,660.49,1.4637048]
[1748034733217,1.08201037,661.54,660.49,1.4637048]
[1748034733417,1.08201037,661.53,660.49,1.4637048]
[1748034733715,1.08201037,661.52,660.49,1.4637048]
[1748034733918,1.11697207,661.55,660.49,1.4637048]
[1748034734119,1.08184368,661.54,660.49,1.4637048]
[1748034734314,1.08184368,661.53,660.49,1.4637048]
[1748034734514,1.08184368,661.52,660.49,1.4637048]
[1748034734718,1.11697207,661.55,660.49,1.4637048]
[1748034734917,1.08165031,661.54,660.49,1.4637048]
[1748034735114,1.08165031,661.53,660.49,1.4637048]
[1748034735318,1.08165031,661.52,660.49,1.4637048]
[1748034735614,1.11697207,661.55,660.49,1.4637048]
[1748034735814,1.08152293,661.54,660.49,1.4637048]
[1748034736013,1.08152293,661.53,660.49,1.4637048]
[1748034736219,1.11697207,661.55,660.49,1.4637048]
[1748034737722,1.11697207,661.65,660.44,1.4637048]
[1748034738019,1.38366462,661.64,660.44,1.4637048]
[1748034738220,0.30227918,661.64,660.44,1.4637048]
[1748034738921,0.30227918,661.64,660.44,1.76653321]
[1748034740023,0.30227918,661.64,660.45,0.30282383]
[1748034741728,0.30227918,661.64,660.66,1.4637048]
[1748034744528,1.11697207,661.78,660.66,1.4637048]
[1748034745128,1.11697207,661.78,660.53,2.19556721]
[1748034745129,1.11697207,661.92,660.72,1.4637048]
[1748034745426,1.08005162,661.91,660.72,1.4637048]
[1748034745623,1.11697207,661.92,660.72,1.4637048]
[1748034745928,1.07978845,661.91,660.72,1.4637048]
[1748034746128,1.11697207,661.92,660.72,1.4637048]
[1748034746323,1.07999677,661.91,660.72,1.4637048]
[1748034746527,1.11697207,661.92,660.72,1.4637048]
[1748034746728,1.07958967,661.91,660.72,1.4637048]
[1748034746928,1.11697207,661.92,660.72,1.4637048]
[1748034748722,1.11697207,662.02,660.73,0.3026955]
[1748034751232,0.26300774,662.27,660.73,0.3026955]
[1748034751427,1.85214916,662.26,660.73,0.3026955]
[1748034751629,1.85189791,662.25,660.73,0.3026955]
[1748034751825,1.85190247,662.24,660.73,0.3026955]
[1748034752028,1.85190703,662.23,660.73,0.3026955]
[1748034752268,1.85191159,662.22,660.73,0.3026955]
[1748034752425,1.54989716,662.21,660.73,0.3026955]
[1748034752626,1.54989716,662.2,660.73,0.3026955]
[1748034752826,0.30201443,662.22,660.73,0.3026955]
[1748034752827,1.54989716,662.19,660.73,0.3026955]
[1748034753126,1.54989716,662.18,660.73,0.3026955]
[1748034753327,1.54989716,662.17,660.73,0.3026955]
[1748034753531,1.54989716,662.16,660.73,0.3026955]
[1748034753729,1.54989716,662.15,660.73,0.3026955]
[1748034754034,1.54944498,662.14,660.73,0.3026955]
[1748034754227,1.54944498,662.13,660.73,0.3026955]
[1748034754533,1.85150502,662.12,660.73,0.3026955]
[1748034754732,1.85150959,662.11,660.73,0.3026955]
[1748034754933,1.85151415,662.1,660.73,0.3026955]
[1748034755233,1.85151871,662.09,660.73,0.3026955]
[1748034755532,1.85152327,662.08,660.73,0.3026955]
[1748034755731,1.84896771,662.07,660.73,0.3026955]
[1748034755931,1.84897227,662.06,660.73,0.3026955]
[1748034756132,1.54688485,662.05,660.73,0.3026955]
[1748034756330,1.54688485,662.04,660.73,0.3026955]
[1748034756634,1.11697207,661.99,660.73,0.3026955]
[1748034756829,1.54688485,661.98,660.73,0.3026955]
[1748034757028,1.54688485,661.97,660.73,0.3026955]